bitfinex/quotes_ETHUSD_20250422
["timestamp","ask_amount","ask_price","bid_price","bid_amount"]
[1745324857947,0.7653,1632.0,1631.9,5.255]
[1745324858151,6.89256601,1632.1,1631.9,5.255]
[1745324858364,13.01991579,1632.1,1631.9,5.255]
[1745324858581,6.12745098,1632.0,1631.9,5.255]
[1745324861684,6.89218823,1632.2,1631.9,5.255]
[1745324862010,13.01925951,1632.2,1631.9,6.90522189]
[1745324862166,6.12707777,1632.1,1631.9,7.59574408]
[1745324863879,6.89218823,1632.2,1631.9,7.59574408]
[1745324864078,6.12708122,1632.1,1631.9,7.59574408]
[1745324865190,6.12745098,1632.0,1631.9,5.255]
[1745324865489,6.89275098,1632.0,1631.9,5.255]
[1745324866378,6.12745098,1632.0,1631.9,5.255]
[1745324867388,6.89238122,1632.1,1631.9,5.255]
[1745324867582,6.12745098,1632.0,1631.9,5.255]
[1745324870403,6.89238122,1632.1,1631.9,5.255]
[1745324871108,13.01975925,1632.1,1631.9,5.255]
[1745324871301,6.12745098,1632.0,1631.9,5.255]
[1745324872076,6.89238122,1632.1,1631.9,5.255]
[1745324872278,6.12687303,1632.2,1631.9,5.7805]
[1745324872496,6.12710604,1632.1,1631.9,5.7805]
[1745324872703,12.25454901,1632.1,1631.9,5.7805]
[1745324873008,6.12710604,1632.1,1631.9,5.7805]
[1745324874714,6.12707745,1632.1,1631.9,5.7805]
[1745324874909,6.12707745,1632.1,1632.0,0.57805]
[1745324875220,12.25390807,1632.2,1632.0,0.57805]
[1745324875380,12.25392109,1632.2,1632.0,0.57805]
[1745324875715,12.25389744,1632.2,1632.0,0.57805]
[1745324876017,6.12694803,1632.2,1632.0,0.57805]
[1745324876511,12.25391978,1632.2,1632.0,0.57805]
[1745324876715,6.12694803,1632.2,1632.0,0.57805]
[1745324876879,6.12707554,1632.1,1632.0,0.57805]
[1745324877379,6.12694803,1632.2,1632.0,0.57805]
[1745324878016,12.25394678,1632.2,1632.0,0.57805]
[1745324878996,6.12694803,1632.2,1632.0,0.57805]
[1745324880522,12.25314881,1632.3,1632.1,0.764]
[1745324881724,6.12670015,1632.2,1632.1,0.764]
[1745324881890,6.12615534,1632.4,1632.1,0.764]
[1745324882082,6.12615534,1632.4,1632.1,1.68207827]
[1745324882291,6.12615534,1632.4,1632.1,0.764]
[1745324882627,13.00516993,1632.5,1632.1,8.54128979]
[1745324882827,6.87931741,1632.5,1632.1,8.54128979]
[1745324883128,6.12596827,1632.4,1632.1,2.41422189]
[1745324883328,6.12581741,1632.5,1632.1,8.54129733]
[1745324883499,12.2054383,1632.6,1632.3,0.764]
[1745324883697,12.2054383,1632.6,1632.4,5.252]
[1745324883902,6.12557427,1632.5,1632.4,5.252]
[1745324884085,12.2054383,1632.6,1632.4,5.252]
[1745324884425,18.33097798,1632.6,1632.4,5.252]
[1745324884607,12.2054383,1632.6,1632.4,6.30121047]
[1745324884813,18.33100534,1632.6,1632.4,6.30121047]
[1745324885186,18.33092291,1632.6,1632.4,6.30121047]
[1745324885695,6.12557427,1632.5,1632.4,6.30121047]
[1745324885897,6.1254383,1632.6,1632.4,6.30121047]
[1745324886195,6.12506625,1632.7,1632.5,0.63012105]
[1745324886417,6.12519906,1632.6,1632.5,0.63012105]
[1745324888797,6.12506625,1632.7,1632.5,0.63012105]
[1745324889128,6.12519906,1632.6,1632.5,0.63012105]
[1745324893530,6.12501183,1632.7,1632.5,1.45202105]
[1745324895033,12.25017428,1632.7,1632.5,1.45202105]
[1745324895841,6.12501183,1632.7,1632.5,1.45202105]
[1745324897641,6.12519906,1632.6,1632.5,0.63012105]
[1745324898131,6.12557427,1632.5,1632.4,5.69961047]
[1745324898707,6.12557427,1632.5,1632.4,5.69761047]
[1745324899022,12.25087636,1632.6,1632.4,5.69761047]
[1745324899211,6.12557427,1632.5,1632.4,5.69761047]
[1745324900329,6.948129,1632.7,1632.4,5.69761047]
[1745324900501,6.12523714,1632.6,1632.4,6.72474795]
[1745324901533,6.12498422,1632.7,1632.4,6.72474795]
[1745324901723,6.12463712,1632.8,1632.5,0.7622]
[1745324902526,12.24934496,1632.8,1632.5,0.7622]
[1745324902726,6.12463712,1632.8,1632.5,0.7622]
[1745324902931,6.12499439,1632.7,1632.5,0.7622]
[1745324904308,12.24934951,1632.8,1632.5,0.7622]
[1745324904509,6.12463712,1632.8,1632.5,0.7622]
[1745324904909,12.24935981,1632.8,1632.5,0.7622]
[1745324905504,6.12463712,1632.8,1632.5,2.41096314]
[1745324906729,6.12462304,1632.8,1632.5,2.41096314]
[1745324906908,6.1242187,1632.9,1632.5,2.41096314]
[1745324907112,6.12445259,1632.8,1632.5,2.41096314]
[1745324907339,6.1242187,1632.9,1632.6,1.64876314]
[1745324907641,6.12448076,1632.8,1632.5,2.41096314]
[1745324908737,6.1242187,1632.9,1632.5,8.53635405]
[1745324908943,12.24860329,1632.9,1632.6,0.85363541]
[1745324909137,12.24860445,1632.9,1632.6,0.85363541]
[1745324909338,6.1242187,1632.9,1632.6,0.85363541]
[1745324910218,6.12313767,1633.2,1632.8,2.41096314]
[1745324910423,6.12337328,1633.1,1632.9,5.246]
[1745324910618,6.12337328,1633.1,1632.9,6.01169631]
[1745324911037,6.12353433,1633.1,1632.9,6.01169631]
[1745324911435,6.91133767,1633.2,1632.9,6.01169631]
[1745324912341,6.12337142,1633.1,1632.9,6.01169631]
[1745324912536,6.12369871,1633.0,1632.9,5.246]
[1745324912936,6.12369871,1633.0,1632.6,0.7622]
[1745324913136,6.12408929,1632.9,1632.7,5.246]
[1745324913344,12.24844678,1632.9,1632.7,5.246]
[1745324913541,12.24844678,1632.9,1632.5,4.51150012]
[1745324913748,6.91275164,1632.8,1632.6,5.69715001]
[1745324913921,6.91275164,1632.8,1632.6,0.45115001]
[1745324914119,6.91275164,1632.8,1632.4,7.60049446]
[1745324914120,6.9127691,1632.8,1632.4,1.47474795]
[1745324914425,6.12506354,1632.7,1632.5,5.246]
[1745324915047,12.25017719,1632.7,1632.5,5.246]
[1745324915251,6.12506354,1632.7,1632.5,5.246]
[1745324915448,0.7882,1632.8,1632.5,5.246]
[1745324915822,0.7882,1632.8,1632.5,5.3072495]
[1745324916022,13.03690356,1632.9,1632.6,0.53072495]
[1745324916551,6.12390329,1633.0,1632.7,0.06124627]
[1745324916734,6.12390329,1633.0,1632.6,10.40510318]
[1745324918053,6.12390329,1633.0,1632.7,0.7622]
[1745324918260,12.24791018,1633.0,1632.7,0.7622]
[1745324918429,6.12390329,1633.0,1632.7,0.82344183]
[1745324918758,6.91174131,1633.1,1632.7,6.88701207]
[1745324918959,6.91174131,1633.1,1632.8,0.68870121]
[1745324919258,6.91174131,1633.1,1632.9,5.246]
[1745324919748,13.03535234,1633.1,1632.9,5.246]
[1745324919955,6.91174131,1633.1,1632.9,5.246]
[1745324920256,0.7882,1633.1,1632.9,5.246]
[1745324920555,12.24641223,1633.2,1632.9,5.246]
[1745324920968,6.12336346,1633.1,1632.9,5.246]
[1745324921265,6.89298613,1633.3,1632.9,6.97450013]
[1745324921556,13.01586238,1633.3,1632.9,6.97450013]
[1745324922149,6.89298613,1633.3,1632.9,6.97450013]
[1745324922352,13.01588876,1633.3,1632.9,6.97450013]
[1745324922755,6.12278613,1633.3,1632.9,6.97450013]
[1745324922953,6.12243827,1633.4,1633.0,4.50798159]
[1745324923122,6.12243827,1633.4,1633.0,4.44675013]
[1745324923319,6.12243827,1633.4,1633.0,10.57044809]
[1745324924020,6.12243827,1633.4,1633.0,4.44675013]
[1745324925422,6.12243827,1633.4,1633.0,10.57042902]
[1745324925656,6.12243827,1633.4,1633.1,1.0570429]
[1745324925951,6.12127718,1633.7,1633.3,0.7706]
[1745324926157,12.24261633,1633.7,1633.4,5.246]
[1745324926355,6.12164286,1633.6,1633.4,5.246]
[1745324926662,6.1218243,1633.5,1633.3,0.7706]
[1745324926826,6.1218243,1633.5,1633.4,5.245]
[1745324927155,6.12226694,1633.4,1633.1,1.8276429]
[1745324927353,6.12226694,1633.4,1633.2,5.245]
[1745324927757,6.12226694,1633.4,1633.1,1.8276429]
[1745324928057,6.12266468,1633.3,1633.2,5.245]
[1745324928360,6.12226694,1633.4,1633.2,5.245]
[1745324928549,6.12226694,1633.4,1633.2,5.95226429]
[1745324929060,0.7834,1633.6,1633.2,5.95226429]
[1745324929061,12.24414356,1633.5,1633.2,5.95226429]
[1745324929356,6.12202823,1633.5,1633.2,5.95226429]
[1745324929528,12.24414541,1633.5,1633.2,5.95226429]
[1745324929728,6.12202823,1633.5,1633.2,5.95226429]
[1745324929941,6.12219909,1633.4,1633.3,0.59522643]
[1745324930136,6.12219909,1633.4,1633.2,5.95226429]
[1745324930339,13.02807216,1633.4,1633.1,1.0570429]
[1745324930657,6.90559909,1633.4,1633.3,5.245]
[1745324933642,6.12200655,1633.5,1633.3,5.245]
[1745324933959,6.12219909,1633.4,1633.3,5.245]
[1745324934357,0.7834,1633.4,1633.0,0.7706]
[1745324934661,6.90663443,1633.2,1633.1,5.245]
[1745324934863,6.12276064,1633.3,1633.1,5.7695]
[1745324935024,6.88118519,1633.4,1633.1,5.7695]
[1745324935462,6.12238519,1633.4,1633.1,5.7695]
[1745324936032,6.88086962,1633.5,1633.1,5.7695]
[1745324936361,6.12220828,1633.4,1633.1,5.7695]
[1745324936558,6.08,1633.8,1633.2,0.57695]
[1745324936559,6.12159428,1633.6,1633.2,0.57695]
[1745324936732,6.88082467,1633.5,1633.2,0.57695]
[1745324937536,6.12202467,1633.5,1633.2,0.57695]
[1745324938665,12.24413591,1633.5,1633.2,0.57695]
[1745324938863,6.12202467,1633.5,1633.2,0.57695]
[1745324939858,12.2441419,1633.5,1633.2,0.57695]
[1745324940069,12.24409998,1633.5,1633.2,0.57695]
[1745324940241,6.12226317,1633.4,1633.2,0.57695]
[1745324941483,12.24414477,1633.5,1633.2,0.57695]
[1745324941639,6.12207193,1633.5,1633.2,0.57695]
[1745324941837,12.24416773,1633.5,1633.2,0.57695]
[1745324942074,6.12207193,1633.5,1633.2,0.57695]
[1745324942379,6.12215905,1633.5,1633.3,0.8078]
[1745324942537,6.12144955,1633.6,1633.2,1.38475]
[1745324942742,6.12257393,1633.3,1633.1,0.5245]
[1745324942981,6.12257393,1633.3,1633.2,5.242]
[1745324943162,12.24484082,1633.4,1633.2,5.242]
[1745324943475,6.12236222,1633.4,1633.2,5.242]
[1745324943852,6.12236222,1633.4,1633.2,5.81865]
[1745324944265,6.88083783,1633.5,1633.2,5.81865]
[1745324944461,6.88083783,1633.5,1633.2,10.37575012]
[1745324944967,6.12203783,1633.5,1633.2,6.62645]
[1745324945286,6.12169116,1633.6,1633.2,12.74936517]
[1745324945467,6.12169116,1633.6,1633.3,1.27493652]
[1745324945843,6.12184105,1633.5,1633.3,1.27493652]
[1745324946264,6.12235422,1633.4,1633.2,6.62645]
[1745324946881,6.12235422,1633.4,1633.2,5.81865]
[1745324947102,12.24486306,1633.4,1633.2,5.81865]
[1745324947261,6.12257393,1633.3,1633.2,5.81865]
[1745324947756,6.12235422,1633.4,1633.2,5.81865]
[1745324949157,6.12257393,1633.3,1633.2,5.81865]
[1745324950680,6.12257393,1633.3,1633.2,5.242]
[1745324951287,6.12330532,1633.2,1633.0,0.8078]
[1745324951580,6.12390882,1633.0,1632.9,5.242]
[1745324951770,6.12390882,1633.0,1632.5,0.8078]
[1745324951771,6.12456835,1632.8,1632.5,0.8078]
[1745324951941,12.24927038,1632.8,1632.6,5.242]
[1745324952160,6.12456835,1632.8,1632.6,5.84698]
[1745324952991,6.12416729,1632.9,1632.6,5.84698]
[1745324953301,6.12416729,1632.9,1632.6,9.59628012]
[1745324953500,6.12416729,1632.9,1632.6,5.84698]
[1745324954598,12.24790191,1633.0,1632.6,5.84698]
[1745324954800,6.12409658,1632.9,1632.7,0.584698]
[1745324956694,6.12444879,1632.8,1632.6,5.84698]
[1745324958899,6.12429254,1632.9,1632.6,5.84698]
[1745324959415,12.24872167,1632.9,1632.6,5.84698]
[1745324959581,6.12468466,1632.8,1632.6,5.84698]
[1745324959814,0.7588,1632.9,1632.5,0.8078]
[1745324960021,6.12543052,1632.6,1632.4,5.243]
[1745324960211,6.12557427,1632.5,1632.4,5.243]
[1745324960422,6.88376836,1632.7,1632.4,5.243]
[1745324960610,0.7588,1632.7,1632.4,5.243]
[1745324960927,0.7588,1632.7,1632.4,5.7673]
[1745324961310,0.7588,1632.7,1632.4,5.243]
[1745324964331,0.7588,1632.9,1632.4,8.99230012]
[1745324964637,0.7588,1632.9,1632.4,15.17933794]
[1745324964840,0.7588,1632.9,1632.4,15.11808075]
[1745324966049,0.7588,1632.9,1632.4,21.24387895]
[1745324966343,6.95326374,1633.1,1632.6,0.8044]
[1745324966645,0.8298,1633.1,1632.6,0.8044]
[1745324966849,0.8298,1633.1,1632.6,4.55370012]
[1745324967033,0.8298,1633.1,1632.6,10.67878872]
[1745324967457,0.8298,1633.1,1632.6,4.55370012]
[1745324967768,6.95317567,1633.1,1632.7,0.45537001]
[1745324967931,6.95317567,1633.1,1632.8,5.243]
[1745324968367,6.95319131,1633.1,1632.8,5.243]
[1745324969369,0.8298,1633.1,1632.8,5.243]
[1745324971032,6.1230728,1633.2,1632.8,5.243]
[1745324971979,12.2463493,1633.2,1632.8,5.243]
[1745324972150,6.12334324,1633.1,1632.8,5.243]
[1745324973164,8.03868773,1633.2,1632.8,5.243]
[1745324973477,6.12335397,1633.1,1632.8,5.243]
[1745324974072,14.16199733,1633.2,1632.8,5.243]
[1745324974278,8.03868773,1633.2,1632.8,5.243]
[1745324974681,6.12336096,1633.1,1632.8,5.243]
[1745324974908,8.03868773,1633.2,1632.8,5.243]
[1745324975106,12.24701443,1633.1,1632.8,5.243]
[1745324975305,0.8298,1633.0,1632.8,5.243]
[1745324977123,6.12542955,1632.6,1632.4,25.428]
[1745324977285,6.12542955,1632.6,1632.4,5.241]
[1745324977688,6.12501785,1632.7,1632.4,5.241]
[1745324977890,6.1252194,1632.6,1632.4,5.241]
[1745324979691,12.25012007,1632.7,1632.4,5.241]
[1745324980074,12.2500682,1632.7,1632.4,5.241]
[1745324980815,12.25007352,1632.7,1632.4,5.241]
[1745324981422,6.12497097,1632.7,1632.4,5.241]
[1745324981715,6.12530732,1632.6,1632.4,5.241]
[1745324982793,12.25013066,1632.7,1632.4,5.241]
[1745324983104,6.12497097,1632.7,1632.4,5.241]
[1745324983405,6.12524874,1632.6,1632.4,5.241]
[1745324984017,6.12557427,1632.5,1632.4,5.241]
[1745324984204,7.70960735,1632.5,1632.4,5.241]
[1745324984405,6.91657427,1632.5,1632.4,5.241]
[1745324985018,6.12524874,1632.6,1632.4,5.241]
[1745324985311,6.12557427,1632.5,1632.4,5.241]
[1745324993996,6.12557427,1632.5,1632.0,5.00146442]
[1745324994321,6.91727859,1632.4,1632.1,5.242]
[1745324994617,6.91727859,1632.4,1632.1,6.26634644]
[1745324994828,6.91727859,1632.4,1632.2,5.242]
[1745324994985,6.91727859,1632.4,1632.1,1.02434644]
[1745324995320,13.08355843,1632.5,1632.3,5.242]
[1745324995479,6.95769729,1632.5,1632.3,5.242]
[1745324995821,13.08359768,1632.5,1632.3,5.242]
[1745324996184,6.95769729,1632.5,1632.3,5.242]
[1745324996386,6.12579729,1632.5,1632.3,5.242]
[1745324996720,6.12539089,1632.6,1632.3,5.242]
[1745324996923,6.08,1632.7,1632.4,10.66482556]
[1745324997096,6.1238894,1633.0,1632.5,0.7896]
[1745324997281,6.1238894,1633.0,1632.5,7.37701235]
[1745324997282,0.61238894,1632.9,1632.5,7.37701235]
[1745324997481,6.1238894,1633.0,1632.5,13.50237906]
[1745324997683,6.1238894,1633.0,1632.5,7.37699565]
[1745324997913,6.1238894,1633.0,1632.5,13.50238871]
[1745324998116,6.1238894,1633.0,1632.6,0.7896]
[1745324998317,6.12354137,1633.1,1632.7,5.243]
[1745324998615,6.12354137,1633.1,1632.8,0.7896]
[1745324999621,6.12318981,1633.2,1632.8,5.14216012]
[1745324999997,6.12318981,1633.2,1632.8,11.2665595]
[1745325000304,12.20269938,1633.3,1632.8,10.47680437]
[1745325000522,6.08,1633.3,1633.0,0.7878]
[1745325000821,6.12284974,1633.3,1633.1,5.241]
[1745325000986,6.12240256,1633.4,1633.1,5.241]
[1745325001523,6.92820893,1633.5,1633.1,5.241]
[1745325001746,6.12220862,1633.4,1633.1,5.241]
[1745325002028,6.12200893,1633.5,1633.1,6.83116108]
[1745325002232,12.24411901,1633.5,1633.1,6.83116108]
[1745325002432,6.12231234,1633.4,1633.1,6.83116108]
[1745325003136,6.12200893,1633.5,1633.2,0.7878]
[1745325004220,6.12233224,1633.4,1633.1,6.83116108]
[1745325004396,6.12257393,1633.3,1633.2,5.239]
[1745325005226,6.12257393,1633.3,1633.0,0.7878]
[1745325005427,6.12257393,1633.3,1633.2,5.239]
[1745325006331,13.66333852,1633.4,1633.2,5.239]
[1745325006513,6.12257393,1633.3,1633.2,5.239]
[1745325008201,6.12332374,1633.1,1632.8,0.7878]
[1745325008511,6.1231071,1633.2,1633.1,5.239]
[1745325008725,6.12275818,1633.3,1633.1,5.239]
[1745325009124,12.2456576,1633.3,1633.1,5.239]
[1745325009347,6.12275818,1633.3,1633.1,5.239]
[1745325009707,6.12201187,1633.5,1633.1,5.239]
[1745325009920,6.12201187,1633.5,1633.2,0.7878]
[1745325010210,12.24412858,1633.5,1633.2,0.7878]
[1745325010410,6.12201187,1633.5,1633.2,0.7878]
[1745325010850,13.0078899,1633.6,1633.2,0.7878]
[1745325011144,12.24394427,1633.5,1633.2,0.7878]
[1745325011353,6.12184729,1633.5,1633.2,0.7878]
[1745325011525,6.1222084,1633.4,1633.2,0.7878]
[1745325011856,6.12184729,1633.5,1633.2,0.7878]
[1745325011857,12.24404041,1633.5,1633.2,0.7878]
[1745325012149,6.12184729,1633.5,1633.2,0.7878]
[1745325012316,6.12184729,1633.5,1633.2,2.43800622]
[1745325012512,6.12130933,1633.7,1633.3,4.5654235]
[1745325013032,12.24267339,1633.7,1633.3,4.5654235]
[1745325013211,6.12145432,1633.6,1633.3,4.5654235]
[1745325013414,12.24271489,1633.7,1633.3,5.79925344]
[1745325013638,6.12130933,1633.7,1633.3,5.79925344]
[1745325013846,6.12130933,1633.7,1633.3,5.73803006]
[1745325014033,6.12160488,1633.6,1633.3,4.50420012]
[1745325016374,12.2427342,1633.7,1633.3,4.50420012]
[1745325016548,6.12152916,1633.6,1633.3,4.50420012]
[1745325018578,6.12130933,1633.7,1633.3,4.50420012]
[1745325018871,12.24263483,1633.7,1633.3,4.50420012]
[1745325019174,6.1215571,1633.6,1633.3,5.73192242]
[1745325019761,13.02025572,1633.9,1633.3,1.9826223]
[1745325020074,6.1218243,1633.5,1633.4,5.238]
[1745325021071,6.12163623,1633.6,1633.4,5.238]
[1745325021261,6.12120088,1633.7,1633.4,5.238]
[1745325021462,12.24254507,1633.7,1633.4,5.238]
[1745325022172,12.24257973,1633.7,1633.4,5.238]
[1745325022367,12.24259495,1633.7,1633.4,5.83729]
[1745325023364,6.12120088,1633.7,1633.4,5.83729]
[1745325023875,6.12120088,1633.7,1633.5,0.7549]
[1745325024290,12.24195798,1633.8,1633.5,0.7549]
[1745325024442,6.12092871,1633.8,1633.5,0.7549]
[1745325024776,6.12092871,1633.8,1633.5,1.78904901]
[1745325024977,6.12122698,1633.7,1633.5,1.78904901]
[1745325025274,6.12092871,1633.8,1633.5,1.78904901]
[1745325025776,6.12047055,1633.9,1633.5,1.78904901]
[1745325026071,6.12011898,1634.0,1633.7,0.7958]
[1745325026276,6.12011898,1634.0,1633.8,5.238]
[1745325026446,12.24039213,1634.0,1633.8,5.238]
[1745325026776,6.1203256,1633.9,1633.8,5.238]
[1745325027437,6.1203256,1633.9,1633.7,0.7958]
[1745325027641,6.1203256,1633.9,1633.8,5.238]
[1745325028374,6.12120681,1633.7,1633.6,5.238]
[1745325028877,6.12088372,1633.8,1633.6,5.238]
[1745325029565,6.92761832,1633.9,1633.6,5.238]
[1745325029938,13.04751637,1634.0,1633.6,5.238]
[1745325030270,6.92727756,1634.0,1633.7,0.7958]
[1745325030474,6.12017756,1634.0,1633.7,0.7958]
[1745325031476,0.8071,1634.3,1633.8,6.12045379]
[1745325031680,6.11856075,1634.4,1634.1,0.7958]
[1745325031860,6.11895157,1634.3,1634.2,5.235]
[1745325033192,6.11948067,1634.2,1633.9,0.7958]
[1745325033406,0.8071,1634.4,1634.2,5.235]
[1745325033407,12.23742113,1634.4,1634.2,5.235]
[1745325033547,6.11882763,1634.3,1634.2,5.235]
[1745325033876,6.11868211,1634.4,1634.2,5.235]
[1745325034089,6.11868211,1634.4,1634.2,6.0308]
[1745325034465,6.51543708,1634.5,1634.2,6.0308]
[1745325034649,0.3971835,1634.5,1634.2,10.38318012]
[1745325034850,0.3971835,1634.5,1634.2,10.4443646]
[1745325035180,0.3971835,1634.5,1634.2,10.38318012]
[1745325035953,0.3971835,1634.5,1634.2,16.50231902]
[1745325036455,0.3971835,1634.5,1634.2,10.38318012]
[1745325036845,6.11849796,1634.4,1634.2,10.38318012]
[1745325037053,6.11849796,1634.4,1634.2,6.63388]
[1745325037284,6.51558853,1634.5,1634.2,6.63388]
[1745325037498,6.11854783,1634.4,1634.2,6.63388]
[1745325037664,6.51558853,1634.5,1634.2,6.63388]
[1745325038675,0.3971835,1634.5,1634.2,6.63388]
[1745325038882,0.3971835,1634.5,1634.3,0.663388]
[1745325039082,0.3971835,1634.5,1634.4,4.54510012]
[1745325039449,0.3971835,1634.5,1634.4,10.66355337]
[1745325039656,0.3971835,1634.5,1634.4,4.54510012]
[1745325039954,0.3971835,1634.5,1634.4,6.0298]
[1745325040180,0.3971835,1634.5,1634.4,9.77910012]
[1745325040377,0.3971835,1634.5,1634.4,15.16293564]
[1745325040555,0.3971835,1634.5,1634.4,22.22070437]
[1745325040757,0.3971835,1634.5,1634.4,20.96747237]
[1745325040998,0.3971835,1634.5,1634.4,22.11762303]
[1745325041202,0.3971835,1634.5,1634.4,12.58875078]
[1745325041362,0.3971835,1634.5,1634.4,5.234]
[1745325043602,6.51526242,1634.5,1634.4,5.234]
[1745325043805,0.3971835,1634.5,1634.4,5.234]
[1745325045968,6.51526242,1634.5,1634.4,5.234]
[1745325046674,6.11875053,1634.4,1634.2,5.18288012]
[1745325046879,6.11875053,1634.4,1634.3,5.233]
[1745325047413,6.11903508,1634.3,1634.1,0.8305]
[1745325047614,6.11903508,1634.3,1634.2,5.233]
[1745325047901,6.11864617,1634.4,1634.2,5.233]
[1745325048115,12.23735715,1634.4,1634.2,5.233]
[1745325048268,6.11864617,1634.4,1634.2,5.233]
[1745325048800,6.11882763,1634.3,1634.2,5.233]
[1745325049699,6.11863766,1634.4,1634.2,5.233]
[1745325050071,6.11882763,1634.3,1634.2,5.233]
[1745325052200,6.51543023,1634.5,1634.2,5.233]
[1745325052405,12.63378971,1634.5,1634.2,6.25902549]
[1745325052618,6.11856688,1634.4,1634.2,6.25902549]
[1745325053312,6.11882763,1634.3,1634.2,5.233]
[1745325053600,0.8176,1633.3,1632.4,0.8305]
[1745325053827,0.2997,1632.5,1632.4,0.8305]
[1745325054036,6.12578542,1632.5,1632.2,0.8305]
[1745325054330,6.12577652,1632.5,1632.2,0.8305]
[1745325054733,6.12621877,1632.4,1632.2,0.8305]
[1745325055038,6.12595743,1632.4,1632.0,20.33769136]
[1745325055342,5.8842076,1632.5,1632.1,2.03376914]
[1745325055617,6.12393667,1633.0,1632.3,0.7547]
[1745325055795,6.12430608,1632.9,1632.4,5.494]
[1745325055996,6.12462174,1632.8,1632.4,5.494]
[1745325056415,6.12491272,1632.7,1632.4,5.494]
[1745325056610,6.12519906,1632.6,1632.5,0.5494]
[1745325056802,6.12519906,1632.6,1632.4,5.494]
[1745325057121,6.90946335,1632.9,1632.4,5.494]
[1745325057323,6.12518012,1632.7,1632.4,5.494]
[1745325057524,6.12528281,1632.6,1632.4,5.494]
[1745325058027,6.12557427,1632.5,1632.4,5.494]
[1745325058226,6.12557427,1632.5,1632.4,6.11887]
[1745325058822,6.12557427,1632.5,1632.4,5.494]
[1745325062235,6.12773521,1632.0,1631.7,0.7535]
[1745325062401,6.12820198,1631.8,1631.7,0.7535]
[1745325062602,6.12820198,1631.8,1631.5,26.4185]
[1745325062603,6.12895317,1631.6,1631.5,26.4185]
[1745325062803,6.12895317,1631.6,1631.5,29.06035]
[1745325063210,6.12895317,1631.6,1631.5,28.30685]
[1745325063807,6.12895317,1631.6,1631.5,25.665]
[1745325064522,6.12883325,1631.7,1631.5,25.665]
[1745325064734,6.12895317,1631.6,1631.5,25.665]
[1745325066038,6.12895317,1631.6,1631.5,20.169]
[1745325066615,6.12895317,1631.6,1631.1,5.498]
[1745325066616,6.13033607,1631.3,1631.1,5.498]
[1745325066943,6.13059462,1631.2,1631.1,5.498]
[1745325067109,6.12887034,1631.7,1631.1,11.62866645]
[1745325067308,6.12922298,1631.6,1631.1,9.29870706]
[1745325067539,6.12943853,1631.5,1631.1,9.29870706]
[1745325067739,6.12943853,1631.5,1631.2,0.92987071]
[1745325068039,6.129218,1631.6,1631.2,0.92987071]
[1745325068401,6.12971063,1631.4,1631.2,0.92987071]
[1745325069215,6.12971144,1631.4,1631.2,0.92987071]
[1745325069419,6.12958175,1631.5,1631.2,0.92987071]
[1745325070140,6.12912732,1631.6,1631.2,0.92987071]
[1745325070345,6.12943892,1631.5,1631.2,0.92987071]
[1745325070913,6.12912732,1631.6,1631.2,0.92987071]
[1745325071630,6.12912732,1631.6,1631.3,0.06129457]
[1745325071817,12.25770751,1631.7,1631.3,0.77344462]
[1745325072008,6.12905362,1631.6,1631.3,0.71215005]
[1745325072212,12.25769163,1631.7,1631.3,0.71215005]
[1745325072523,6.12899237,1631.6,1631.3,0.71215005]
[1745325074541,6.12878657,1631.7,1631.3,0.71215005]
[1745325074753,6.12847081,1631.8,1631.3,0.71215005]
[1745325074925,6.12878186,1631.7,1631.3,6.12995686]
[1745325075258,0.818,1632.1,1631.5,3.80070706]
[1745325075412,6.12682961,1632.2,1631.8,0.7535]
[1745325075609,0.818,1632.4,1631.8,0.81477052]
[1745325075815,12.2531936,1632.3,1631.8,6.88147215]
[1745325076113,6.12672144,1632.2,1631.9,0.68814722]
[1745325076348,6.12672144,1632.2,1632.0,5.5]
[1745325076529,6.12651859,1632.3,1632.0,5.5]
[1745325076847,6.12673758,1632.2,1632.0,5.5]
[1745325077238,6.12707554,1632.1,1632.0,5.5]
[1745325078454,6.12673758,1632.2,1632.0,5.5]
[1745325079152,6.12707554,1632.1,1632.0,5.5]
[1745325082118,1.22538131,1632.1,1631.6,0.7535]
[1745325082318,6.12820198,1631.8,1631.7,5.5]
[1745325086955,6.12801085,1631.9,1631.7,5.5]
[1745325087363,6.12798694,1631.9,1631.7,5.5]
[1745325088961,12.25611023,1631.9,1631.7,5.5]
[1745325089161,12.25607326,1631.9,1631.7,5.5]
[1745325089364,12.25613135,1631.9,1631.7,5.5]
[1745325089924,6.12760526,1632.0,1631.7,6.8826]
[1745325090258,6.12726669,1632.1,1631.7,6.8826]
[1745325090461,6.12750006,1632.0,1631.7,6.8826]
[1745325091225,6.12730038,1632.1,1631.7,6.8826]
[1745325091432,12.2547026,1632.1,1631.7,6.8826]
[1745325091932,6.12730038,1632.1,1631.8,0.68826]
[1745325092342,6.12758311,1632.0,1631.8,0.68826]
[1745325092623,6.12758311,1632.0,1631.7,6.8826]
[1745325093064,6.12793136,1631.9,1631.7,6.3326]
[1745325093271,12.255359,1632.0,1631.7,6.3326]
[1745325093576,12.2553676,1632.0,1631.7,6.3326]
[1745325093732,6.12764052,1632.0,1631.7,6.3326]
[1745325094664,6.12796751,1631.9,1631.7,6.3326]
[1745325095270,12.25609491,1631.9,1631.7,6.3326]
[1745325095430,6.12796751,1631.9,1631.7,6.3326]
[1745325096865,6.12796751,1631.9,1631.7,6.3326]
[1745325097563,6.12796751,1631.9,1631.5,0.8326]
[1745325097730,6.1284262,1631.8,1631.6,5.465]
[1745325098837,6.12857755,1631.7,1631.6,5.465]
[1745325099453,6.12838967,1631.8,1631.6,5.465]
[1745325100154,6.12766149,1632.0,1631.6,5.465]
[1745325100354,6.12766149,1632.0,1631.6,6.2357]
[1745325100545,6.12766149,1632.0,1631.7,0.62357]
[1745325101166,6.12792478,1631.9,1631.7,0.62357]
[1745325102037,6.12792478,1631.9,1631.6,6.2357]
[1745325102674,6.1278373,1631.9,1631.6,6.2357]
[1745325103043,6.12784646,1631.9,1631.6,6.2357]
[1745325104267,12.2559645,1631.9,1631.6,6.2357]
[1745325104773,6.12784646,1631.9,1631.6,6.2357]
[1745325104976,6.12821022,1631.8,1631.6,6.91427]
[1745325105466,12.25670719,1631.8,1631.6,6.2357]